bitfinex-derivatives/quotes_BTCF0:USTF0_20250509
["timestamp","ask_amount","ask_price","bid_price","bid_amount"]
[1746779835111,0.2410039,103720.0,103710.0,0.6645]
[1746779835300,0.2916039,103720.0,103710.0,0.3037]
[1746779835501,0.85953875,103720.0,103710.0,0.3037]
[1746779835901,0.85953875,103720.0,103710.0,0.2544]
[1746779836506,0.86894596,103720.0,103710.0,0.2544]
[1746779836904,0.86894596,103720.0,103710.0,0.2514]
[1746779837100,0.86605901,103720.0,103710.0,0.2514]
[1746779837308,0.70982416,103720.0,103710.0,0.157]
[1746779837508,0.70982416,103720.0,103710.0,0.2036]
[1746779837710,0.29812416,103720.0,103710.0,0.2046]
[1746779838106,0.65892416,103720.0,103710.0,0.2046]
[1746779838303,0.42080721,103720.0,103710.0,0.2046]
[1746779838605,0.66180481,103720.0,103700.0,0.15623485]
[1746779838807,0.75700541,103720.0,103690.0,0.85560495]
[1746779839106,0.66301511,103720.0,103690.0,0.96739251]
[1746779839310,0.66301591,103720.0,103690.0,1.11202161]
[1746779839508,0.75941931,103720.0,103690.0,1.12709997]
[1746779839715,0.47021721,103720.0,103690.0,0.67859642]
[1746779839904,0.46733123,103720.0,103690.0,0.67859642]
[1746779840100,0.62068108,103720.0,103700.0,0.0469]
[1746779840310,0.3608,103710.0,103700.0,0.0469]
[1746779840513,0.4078,103710.0,103700.0,0.06197836]
[1746779841109,0.4078,103710.0,103700.0,0.22197836]
[1746779841715,0.4078,103710.0,103700.0,0.27127836]
[1746779842215,0.56403485,103710.0,103700.0,0.27127836]
[1746779842415,0.40491597,103710.0,103700.0,0.27127836]
[1746779842602,0.40491597,103710.0,103700.0,0.26827836]
[1746779842807,0.60606776,103710.0,103700.0,0.26827836]
[1746779843007,0.44983291,103710.0,103700.0,0.26727836]
[1746779843409,0.44983291,103710.0,103700.0,0.26527836]
[1746779843710,0.44983291,103710.0,103700.0,0.26827836]
[1746779844418,0.60606776,103710.0,103700.0,0.26827836]
[1746779844605,0.44983291,103710.0,103700.0,0.26827836]
[1746779844809,0.60606776,103710.0,103700.0,0.26827836]
[1746779845116,0.44983291,103710.0,103700.0,0.26827836]
[1746779845413,0.44695082,103710.0,103700.0,0.26527836]
[1746779845616,0.44695082,103710.0,103700.0,0.26227836]
[1746779845812,0.4440697,103710.0,103700.0,0.26227836]
[1746779846212,0.3210146,103710.0,103700.0,0.26227836]
[1746779848020,0.31813444,103710.0,103700.0,0.26227836]
[1746779848218,0.47436929,103710.0,103700.0,0.21197836]
[1746779848414,0.4714901,103710.0,103700.0,0.18007836]
[1746779848613,0.8646181,103710.0,103670.0,0.34043548]
[1746779848809,0.51703485,103680.0,103670.0,0.34043548]
[1746779849114,0.51703485,103680.0,103670.0,0.50043548]
[1746779849315,0.4569,103680.0,103670.0,0.50043548]
[1746779850027,0.0961,103680.0,103670.0,0.26070644]
[1746779850221,0.3608,103690.0,103670.0,0.26370644]
[1746779850420,0.4591,103690.0,103680.0,0.048]
[1746779850615,0.8199,103690.0,103680.0,0.048]
[1746779850811,0.8199,103690.0,103680.0,0.045]
[1746779851117,0.3608,103690.0,103680.0,0.042]
[1746779851322,0.001,103690.0,103680.0,0.6115]
[1746779851510,0.001,103690.0,103680.0,0.76773485]
[1746779851909,0.001,103690.0,103680.0,0.86417885]
[1746779852120,0.46224741,103710.0,103680.0,1.56912481]
[1746779852121,0.05104741,103710.0,103680.0,1.56912481]
[1746779852316,0.00144741,103710.0,103680.0,1.06644596]
[1746779852620,0.41184741,103710.0,103690.0,0.0981]
[1746779852824,0.51703485,103700.0,103690.0,0.0494]
[1746779853022,0.51703485,103700.0,103690.0,0.0981]
[1746779853221,0.3608,103700.0,103690.0,0.2581]
[1746779853621,0.35792371,103700.0,103690.0,0.2581]
[1746779854024,0.35792371,103700.0,103690.0,0.2551]
[1746779854025,0.35504838,103700.0,103690.0,0.2551]
[1746779854218,0.35504838,103700.0,103690.0,0.2521]
[1746779854420,0.35504838,103700.0,103690.0,0.2996]
[1746779856529,0.51128323,103700.0,103690.0,0.2966]
[1746779856720,0.35217402,103700.0,103690.0,0.2087]
[1746779856916,0.50840887,103700.0,103690.0,0.2057]
[1746779857116,0.50553547,103700.0,103690.0,0.16]
[1746779857532,0.50753547,103700.0,103690.0,0.16]
[1746779858120,0.35130062,103700.0,103690.0,0.16]
[1746779858424,0.50553547,103700.0,103690.0,0.16]
[1746779858623,0.35030062,103700.0,103690.0,0.16]
[1746779858823,0.50653547,103700.0,103690.0,0.16]
[1746779859228,0.50753547,103700.0,103690.0,0.16]
[1746779859427,0.50466303,103700.0,103690.0,0.16]
[1746779859625,0.60109903,103700.0,103690.0,0.157]
[1746779859817,0.59822756,103700.0,103690.0,0.154]
[1746779860221,0.34555671,103700.0,103690.0,0.154]
[1746779860422,0.50179156,103700.0,103690.0,0.154]
[1746779861727,0.53839171,103700.0,103690.0,0.154]
[1746779861926,0.1928722,103680.0,103670.0,0.09690644]
[1746779862123,0.70990705,103680.0,103670.0,0.25390644]
[1746779862322,0.70703654,103680.0,103670.0,0.25390644]
[1746779862523,0.55080169,103680.0,103670.0,0.2071]
[1746779862728,0.70416699,103680.0,103670.0,0.2071]
[1746779863329,0.54793214,103680.0,103670.0,0.2111]
[1746779863528,0.59613214,103680.0,103670.0,0.2111]
[1746779863727,0.1929095,103660.0,103650.0,0.00101301]
[1746779863933,0.5537095,103660.0,103650.0,0.00101301]
[1746779864129,0.2411095,103660.0,103650.0,0.17610072]
[1746779864726,0.2411095,103660.0,103650.0,0.22770072]
[1746779865031,0.2411095,103660.0,103650.0,0.27200072]
[1746779865231,0.28664091,103660.0,103650.0,0.27200072]
[1746779865528,0.09086378,103660.0,103650.0,0.26900072]
[1746779865721,0.09086378,103660.0,103650.0,0.31700072]
[1746779865922,0.04246378,103660.0,103650.0,0.31700072]
[1746779866230,0.00967623,103660.0,103650.0,1.02896367]
[1746779866432,0.2411144,103670.0,103650.0,0.83603557]
[1746779866632,0.2928144,103670.0,103660.0,0.0958]
[1746779867134,0.2928144,103670.0,103660.0,0.2558]
[1746779867633,0.2938144,103670.0,103660.0,0.2558]
[1746779868135,0.29094773,103670.0,103660.0,0.2558]
[1746779868338,0.29094773,103670.0,103660.0,0.2528]
[1746779868634,0.28808202,103670.0,103660.0,0.2498]
[1746779868835,0.33331727,103670.0,103660.0,0.2498]
[1746779870359,0.1008,103670.0,103660.0,0.4427095]
[1746779870652,0.001,103670.0,103660.0,0.2498]
[1746779870860,0.01081553,103670.0,103660.0,0.8035095]
[1746779871154,0.0964,103680.0,103660.0,1.00497055]
[1746779871155,0.0462362,103680.0,103660.0,1.00497055]
[1746779871353,0.0462362,103680.0,103670.0,0.1499]
[1746779871553,0.04337336,103680.0,103670.0,0.1499]
[1746779871756,0.23624556,103680.0,103670.0,0.1469]
[1746779871949,0.04337336,103680.0,103670.0,0.1469]
[1746779872137,0.23624556,103680.0,103670.0,0.3069]
[1746779872345,0.09017336,103680.0,103670.0,0.3069]
[1746779872636,0.09217336,103680.0,103670.0,0.3069]
[1746779872839,0.28504556,103680.0,103670.0,0.3069]
[1746779873026,0.28704556,103680.0,103670.0,0.3069]
[1746779873341,0.28704556,103680.0,103670.0,0.2559]
[1746779873929,0.28418367,103680.0,103670.0,0.2559]
[1746779874132,0.28418367,103680.0,103670.0,0.2529]
[1746779874441,0.29093014,103680.0,103670.0,0.2499]
[1746779874636,0.44430501,103680.0,103670.0,0.2499]
[1746779874838,0.28807016,103680.0,103670.0,0.2499]
[1746779877037,0.28521114,103680.0,103670.0,0.2469]
[1746779877237,0.28521114,103680.0,103670.0,0.2439]
[1746779877436,0.28235307,103680.0,103670.0,0.2439]
[1746779877635,0.28235307,103680.0,103670.0,0.2409]
[1746779878141,0.64315307,103680.0,103670.0,0.16]
[1746779878439,0.79938792,103680.0,103670.0,0.16]
[1746779878641,0.0482301,103660.0,103640.0,0.3608]
[1746779878835,0.1929281,103650.0,103640.0,0.06678744]
[1746779879030,0.1929281,103650.0,103640.0,0.42758744]
[1746779879248,0.2446281,103650.0,103640.0,0.17508744]
[1746779879841,0.60257098,103650.0,103640.0,0.17708744]
[1746779880144,0.60257098,103650.0,103640.0,0.17408744]
[1746779880348,0.59971482,103650.0,103640.0,0.17408744]
[1746779880649,0.64945961,103650.0,103640.0,0.17308744]
[1746779880946,0.80569446,103650.0,103640.0,0.17308744]
[1746779881141,0.70065961,103650.0,103640.0,0.17308744]
[1746779881350,0.85689446,103650.0,103640.0,0.17308744]
[1746779881738,0.70065961,103650.0,103640.0,0.164]
[1746779881936,0.85689446,103650.0,103640.0,0.164]
[1746779882338,0.85689446,103650.0,103640.0,0.168]
[1746779883037,0.85689446,103650.0,103640.0,0.165]
[1746779883038,0.8540402,103650.0,103640.0,0.165]
[1746779883248,0.8540402,103650.0,103640.0,0.162]
[1746779883447,0.69495204,103650.0,103640.0,0.159]
[1746779883840,0.2894356,103640.0,103620.0,0.0978]
[1746779884145,0.6554582,103640.0,103630.0,0.0504]
[1746779884337,0.6044582,103640.0,103630.0,0.0504]
[1746779884744,0.4115,103640.0,103630.0,0.0504]
[1746779884945,0.6044467,103640.0,103630.0,0.0504]
[1746779885144,0.4115,103640.0,103630.0,0.2104]
[1746779885340,0.6044467,103640.0,103630.0,0.2104]
[1746779885535,0.6059413,103650.0,103630.0,0.4033653]
[1746779885745,0.6044413,103650.0,103640.0,0.0474]
[1746779886042,0.60158894,103650.0,103640.0,0.0989]
[1746779886241,0.60158894,103650.0,103640.0,0.2559]
[1746779886447,0.59873753,103650.0,103640.0,0.2529]
[1746779886642,0.59688707,103650.0,103640.0,0.2529]
[1746779887044,0.75312192,103650.0,103640.0,0.2599]
[1746779887242,0.75312192,103650.0,103640.0,0.16]
[1746779887444,0.80272192,103650.0,103640.0,0.161]
[1746779887744,0.80372192,103650.0,103640.0,0.162]
[1746779888137,0.64748707,103650.0,103640.0,0.162]
[1746779888748,0.80372192,103650.0,103640.0,0.16225386]
[1746779889545,0.8008724,103650.0,103640.0,0.16225386]
[1746779890142,0.8032824,103650.0,103640.0,0.00225386]
[1746779890548,0.64704755,103650.0,103640.0,0.00225386]
[1746779890743,0.8032824,103650.0,103640.0,0.00225386]
[1746779891242,0.95666868,103650.0,103640.0,1e-08]
[1746779891454,0.1929839,103620.0,103610.0,0.10101336]
[1746779891745,0.5537839,103620.0,103610.0,0.09801336]
[1746779891938,0.6049839,103620.0,103610.0,0.09801336]
[1746779892137,0.75837113,103620.0,103610.0,0.25801336]
[1746779892547,0.75837113,103620.0,103610.0,0.20981336]
[1746779892749,0.60213628,103620.0,103610.0,0.20681336]
[1746779892947,0.6059839,103620.0,103610.0,0.005]
[1746779893248,0.1930398,103590.0,103580.0,0.0010137]
[1746779893645,0.2409398,103590.0,103580.0,0.0010137]
[1746779894149,0.2409398,103590.0,103580.0,0.1610137]
[1746779894335,0.6017398,103590.0,103580.0,0.1610137]
[1746779894542,0.75797465,103590.0,103580.0,0.1610137]
[1746779894749,0.6017398,103590.0,103580.0,0.1610137]
[1746779895044,0.6017398,103590.0,103580.0,0.1580137]
[1746779895440,0.59889312,103590.0,103580.0,0.1550137]
[1746779895648,0.59889312,103590.0,103580.0,0.1520137]
[1746779895841,0.64564739,103590.0,103580.0,0.1520137]
[1746779896036,0.80188224,103590.0,103580.0,0.1490137]
[1746779896241,0.79903745,103590.0,103580.0,0.1490137]
[1746779896543,0.80103745,103590.0,103580.0,0.1490137]
[1746779896748,0.6448026,103590.0,103580.0,0.1490137]
[1746779897045,0.2413578,103570.0,103550.0,0.7193]
[1746779897247,0.65982693,103570.0,103560.0,0.0473]
[1746779897543,0.2413813,103560.0,103540.0,0.00101404]
[1746779897741,0.6021749,103560.0,103540.0,0.00101404]
[1746779897941,0.3608,103560.0,103550.0,0.0473]
[1746779898248,0.3608,103560.0,103550.0,0.2541]
[1746779898441,0.35795616,103560.0,103550.0,0.2541]
[1746779898641,0.35511326,103560.0,103550.0,0.2541]
[1746779898838,0.54820896,103560.0,103550.0,0.161]
[1746779899044,0.70160185,103560.0,103550.0,0.161]
[1746779899247,0.545367,103560.0,103550.0,0.158]
[1746779899440,0.85499568,103560.0,103550.0,0.155]
[1746779899747,0.69976083,103560.0,103550.0,0.155]
[1746779899940,0.85699568,103560.0,103550.0,0.158]
[1746779900135,0.95356368,103560.0,103550.0,0.158]
[1746779900546,0.1931568,103530.0,103510.0,0.00101438]
[1746779900741,0.5539568,103530.0,103520.0,0.1002]
[1746779901148,0.5539568,103530.0,103520.0,0.2602]
[1746779901350,0.71019165,103530.0,103520.0,0.2602]
[1746779901550,0.3608,103530.0,103520.0,0.2602]
[1746779901754,0.3608,103550.0,103520.0,0.87081785]
[1746779901949,0.3608,103550.0,103530.0,0.6959256]
[1746779902251,0.80969215,103560.0,103540.0,0.0464]
[1746779902548,0.19027527,103550.0,103540.0,0.0434]
[1746779902746,0.56288233,103550.0,103540.0,0.0434]
[1746779902957,0.193133,103540.0,103530.0,0.16]
[1746779903249,0.71016785,103540.0,103530.0,0.16]
[1746779903646,0.648333,103540.0,103530.0,0.16]
[1746779903838,0.80456785,103540.0,103530.0,0.16]
[1746779904551,0.648333,103540.0,103530.0,0.16]
[1746779904746,0.0944,103540.0,103530.0,0.16]
[1746779904941,0.287533,103540.0,103530.0,0.16]
[1746779905139,0.40486274,103540.0,103530.0,0.2075]
[1746779905342,0.25418835,103550.0,103530.0,0.6145879]
[1746779905544,0.01564525,103550.0,103540.0,0.290033]
[1746779905746,0.01564525,103550.0,103540.0,0.647833]
[1746779906047,0.6017832,103570.0,103540.0,0.6931147]
[1746779906252,0.4566,103570.0,103550.0,0.6014101]
[1746779906446,0.6017771,103570.0,103560.0,0.0475]
[1746779906848,0.1971144,103550.0,103540.0,0.16]
[1746779907051,1.07494925,103550.0,103540.0,0.16]
[1746779907250,1.12284925,103550.0,103540.0,0.16]
[1746779907545,0.1931704,103520.0,103510.0,0.05201438]
[1746779907759,0.71020525,103520.0,103510.0,0.09951438]
[1746779907948,0.9143401,103520.0,103510.0,0.00101438]
[1746779908139,0.9143401,103520.0,103510.0,0.16101438]
[1746779908349,0.0479,103520.0,103510.0,0.51881438]
[1746779908550,0.20413485,103520.0,103510.0,0.56521438]
[1746779908749,0.39447175,103520.0,103510.0,0.56221438]
[1746779909054,0.04223393,103520.0,103510.0,0.60911438]
[1746779909352,0.56813877,103520.0,103510.0,0.0993]
[1746779909555,0.76123097,103520.0,103510.0,0.0993]
[1746779909945,0.56806057,103520.0,103510.0,0.0993]
[1746779910142,0.72429542,103520.0,103510.0,0.2593]
[1746779910349,0.91746582,103520.0,103510.0,0.2593]
[1746779910649,0.76123097,103520.0,103510.0,0.2593]
[1746779911047,0.66272532,103520.0,103510.0,0.2593]
[1746779911450,0.81896017,103520.0,103510.0,0.2593]
[1746779911646,0.65989462,103520.0,103510.0,0.2593]
[1746779911864,0.81329971,103520.0,103510.0,0.2593]
[1746779912152,0.70513603,103520.0,103510.0,0.16]
[1746779912451,0.85854299,103520.0,103510.0,0.157]
[1746779912751,1.01477784,103520.0,103510.0,0.2019]
[1746779912954,1.11138184,103520.0,103510.0,0.2019]
[1746779913148,0.70230814,103520.0,103510.0,0.154]
[1746779913545,1.01477784,103520.0,103510.0,0.154]
[1746779913744,0.82160744,103520.0,103500.0,0.105]
[1746779913952,0.76112385,103510.0,103500.0,0.105]
[1746779914148,0.604889,103510.0,103500.0,0.265]
[1746779914452,0.81112385,103510.0,103500.0,0.265]
[1746779914655,0.654889,103510.0,103500.0,0.42113328]
[1746779914953,0.61793485,103510.0,103500.0,0.41913328]
[1746779915257,0.50887304,103510.0,103500.0,0.46483328]
[1746779915457,0.50887304,103510.0,103500.0,0.50973328]
[1746779915752,0.50604701,103510.0,103500.0,0.50873328]
[1746779915953,0.3628,103510.0,103500.0,0.70194098]
[1746779916152,0.51903485,103510.0,103500.0,0.50973328]
[1746779916351,0.76222385,103510.0,103500.0,0.50673328]
[1746779916551,0.76222385,103510.0,103500.0,0.45803328]
[1746779916856,0.6031639,103510.0,103500.0,0.45703328]
[1746779917157,0.6061639,103510.0,103500.0,0.45803328]
[1746779917357,0.76239875,103510.0,103500.0,0.45803328]
[1746779917546,0.6061639,103510.0,103500.0,0.45803328]
[1746779917848,0.76239875,103510.0,103500.0,0.45803328]
[1746779918049,0.76039875,103510.0,103500.0,0.41013328]
[1746779918250,0.1932077,103500.0,103490.0,0.0489]
[1746779918451,0.45084255,103500.0,103490.0,0.0489]
[1746779918652,0.1932263,103490.0,103480.0,0.0508]
[1746779918853,0.193245,103480.0,103470.0,0.00101473]
[1746779919160,0.80665568,103480.0,103470.0,0.20991473]
[1746779919372,0.64759759,103480.0,103470.0,0.26071473]
[1746779919561,0.64759759,103480.0,103470.0,0.25771473]
[1746779919861,0.64477528,103480.0,103470.0,0.25471473]
[1746779920159,0.6419539,103480.0,103470.0,0.25171473]
[1746779920556,0.61623485,103480.0,103470.0,0.25171473]
[1746779920757,0.46970434,103480.0,103470.0,0.25171473]
[1746779920953,0.001,103490.0,103480.0,0.193245]
[1746779921154,0.001,103490.0,103480.0,0.400545]
[1746779921355,0.001,103490.0,103480.0,0.448845]
[1746779921557,0.00964064,103490.0,103480.0,0.448845]
[1746779921859,0.0979,103500.0,103480.0,0.9062496]
[1746779922059,0.0979,103500.0,103490.0,0.0473]
[1746779922259,0.2911077,103500.0,103490.0,0.0473]
[1746779922459,0.1932263,103490.0,103480.0,0.16]
[1746779922668,0.0979,103490.0,103480.0,0.154]
[1746779922860,0.55120065,103500.0,103480.0,0.2013]
[1746779923159,0.50418325,103500.0,103480.0,0.154]
[1746779923460,0.5512077,103490.0,103480.0,0.154]
[1746779923658,0.7031077,103490.0,103480.0,0.154]
[1746779923858,0.7071077,103490.0,103480.0,0.155]
[1746779924158,0.86734255,103490.0,103480.0,0.156]
[1746779924364,0.7071077,103490.0,103480.0,0.156]
[1746779924863,0.86334255,103490.0,103480.0,0.156]
[1746779925059,0.5167,103490.0,103480.0,0.156]
[1746779925263,0.4655,103490.0,103480.0,0.156]
[1746779925566,0.6587263,103490.0,103480.0,0.156]
[1746779925864,0.81874392,103490.0,103480.0,0.156]
[1746779926059,0.81874392,103490.0,103480.0,0.2025]
[1746779926257,0.76031385,103490.0,103480.0,0.0511]
[1746779926459,0.80959896,103490.0,103480.0,0.001]
[1746779926658,0.193245,103480.0,103470.0,0.0468]
[1746779926873,0.80707985,103480.0,103470.0,0.0468]
[1746779927061,0.650845,103480.0,103470.0,0.2068]
[1746779927966,0.654845,103480.0,103470.0,0.2078]
[1746779928166,0.81107985,103480.0,103470.0,0.2078]
[1746779928374,0.81107985,103480.0,103470.0,0.17297785]
[1746779928572,0.654845,103480.0,103470.0,0.161]
[1746779928870,0.654845,103480.0,103470.0,0.158]
[1746779929063,0.654845,103480.0,103470.0,0.155]
[1746779929271,0.80826588,103480.0,103470.0,0.155]
[1746779929470,0.65203103,103480.0,103470.0,0.155]
[1746779929667,0.80826588,103480.0,103470.0,0.155]
[1746779929866,0.65203103,103480.0,103470.0,0.155]
[1746779930061,0.96450073,103480.0,103470.0,0.155]
[1746779930259,0.65203103,103480.0,103470.0,0.152]
[1746779930461,0.64921798,103480.0,103470.0,0.152]
[1746779930665,0.64940586,103480.0,103470.0,0.148]
[1746779930867,0.65340586,103480.0,103470.0,0.149]
[1746779931562,0.80964071,103480.0,103470.0,0.149]
[1746779931761,0.4686,103480.0,103470.0,0.149]
[1746779931966,0.4686,103480.0,103470.0,0.2481]
[1746779932168,0.4686,103480.0,103470.0,0.4413637]
[1746779932475,0.4192,103480.0,103470.0,0.4413637]
[1746779933071,0.41357852,103480.0,103470.0,0.4413637]
[1746779933272,0.41357852,103480.0,103470.0,0.2451]
[1746779933467,0.36899064,103480.0,103470.0,0.4383637]
[1746779933666,0.36399064,103480.0,103470.0,0.4353637]
[1746779933867,0.3621822,103480.0,103470.0,0.4353637]
[1746779934067,0.3581822,103480.0,103470.0,0.4323637]
[1746779934864,0.3581822,103480.0,103470.0,0.2391]
[1746779935069,0.3581822,103480.0,103470.0,0.4323637]
[1746779935674,0.3581822,103480.0,103470.0,0.44369778]
[1746779936270,0.3581822,103480.0,103470.0,0.44069778]
[1746779936678,0.3581822,103480.0,103470.0,0.43769778]
[1746779937176,0.35537468,103480.0,103470.0,0.43469778]
[1746779937378,0.35256808,103480.0,103470.0,0.43469778]
[1746779937570,0.35256808,103480.0,103470.0,0.43169778]
[1746779937875,0.3497624,103480.0,103470.0,0.43169778]
[1746779938178,0.3497624,103480.0,103470.0,0.58793263]
[1746779938877,0.3497624,103480.0,103470.0,0.43169778]
[1746779939478,0.5430074,103480.0,103470.0,0.43169778]
[1746779939677,0.3497624,103480.0,103470.0,0.43169778]
[1746779939977,0.33535236,103480.0,103470.0,0.43169698]
[1746779940173,0.33254852,103480.0,103470.0,0.43169698]
[1746779940377,0.52579352,103480.0,103470.0,0.23543328]
[1746779940577,0.52299059,103480.0,103470.0,0.42869698]
[1746779940778,0.57139059,103480.0,103470.0,0.42569698]
[1746779941075,0.54968858,103480.0,103470.0,0.42269698]
[1746779941276,0.53808303,103480.0,103470.0,0.42269698]
[1746779941678,0.48968303,103480.0,103470.0,0.42269698]
[1746779941971,0.48968303,103480.0,103470.0,0.22943328]
[1746779942176,0.53928303,103480.0,103470.0,0.22943328]
[1746779942375,0.29643803,103480.0,103470.0,0.42269698]
[1746779942771,0.29643803,103480.0,103470.0,0.43780852]
[1746779943074,0.28434871,103480.0,103470.0,0.43780905]
[1746779943269,0.28434871,103480.0,103470.0,0.6876839]
[1746779943470,0.28434871,103480.0,103470.0,0.6846839]
[1746779943666,0.47479262,103480.0,103470.0,0.43180905]
[1746779943866,0.64183177,103480.0,103470.0,0.23554535]
[1746779944076,0.69143177,103480.0,103470.0,0.23254535]
[1746779944279,0.51939318,103480.0,103470.0,0.42580905]
[1746779944579,0.27594818,103480.0,103470.0,0.42580905]
[1746779944775,0.51819318,103480.0,103470.0,0.42580905]
[1746779945283,0.32494818,103480.0,103470.0,0.54544838]
[1746779945577,0.27594818,103480.0,103470.0,1.09723008]
[1746779945978,0.27594818,103480.0,103470.0,2.27759075]
[1746779946176,0.32494818,103480.0,103470.0,2.43759075]
[1746779946665,0.32114983,103480.0,103470.0,2.34095075]
[1746779946870,0.32035239,103480.0,103470.0,0.84195007]
[1746779947070,0.32035239,103480.0,103470.0,0.83795007]
[1746779947071,0.31655587,103480.0,103470.0,0.83795007]
[1746779947274,0.6294402,103480.0,103470.0,0.18444467]
[1746779947571,0.55820526,103480.0,103470.0,0.37770837]
[1746779947880,0.56020526,103480.0,103470.0,0.18244467]
[1746779948083,0.56020526,103480.0,103470.0,0.37570837]
[1746779948473,0.67984459,103480.0,103470.0,0.37570837]
[1746779948675,0.56020526,103480.0,103470.0,0.37570837]
[1746779948983,0.36696026,103480.0,103470.0,0.36437533]
[1746779949183,0.36696026,103480.0,103470.0,0.53601466]
[1746779949379,0.36696026,103480.0,103470.0,0.4072637]
[1746779949575,0.31576026,103480.0,103470.0,0.62354473]
[1746779949769,0.31576026,103480.0,103470.0,0.83982406]
[1746779949983,0.005,103480.0,103470.0,1.08931724]
[1746779950276,0.67588963,103480.0,103470.0,0.26397421]
[1746779950470,0.82538963,103480.0,103470.0,0.153]
[1746779950669,0.70295651,103480.0,103470.0,0.153]
[1746779950976,0.70016363,103480.0,103470.0,0.15]
[1746779951377,0.81980296,103480.0,103470.0,0.15]
[1746779951773,0.70257363,103480.0,103470.0,0.15]
[1746779951975,0.85965375,103480.0,103470.0,0.15]
[1746779952171,0.70257363,103480.0,103470.0,0.15]
[1746779952679,0.10061,103480.0,103470.0,0.50034382]
[1746779952883,0.05081,103480.0,103470.0,0.76321649]
[1746779953077,0.00241,103480.0,103470.0,1.22065819]
[1746779953277,0.00241,103480.0,103470.0,0.70277807]
[1746779953278,0.36041803,103480.0,103470.0,0.70277807]
[1746779953477,0.40910894,103480.0,103470.0,0.75107807]
[1746779953686,0.46100894,103480.0,103470.0,0.80851819]
[1746779953881,0.45821879,103480.0,103470.0,0.65143807]
[1746779954076,0.45821879,103480.0,103470.0,0.80551819]
[1746779954273,0.45542955,103480.0,103470.0,0.64543807]
[1746779954478,0.45542955,103480.0,103470.0,0.80251819]
[1746779954779,0.64867455,103480.0,103470.0,0.40387437]
[1746779954979,0.80575467,103480.0,103470.0,0.15233267]
[1746779955289,0.80575467,103480.0,103470.0,0.15233428]
[1746779955486,0.80575467,103480.0,103470.0,0.141]
[1746779955783,0.64867455,103480.0,103470.0,0.141]
[1746779955974,0.80575467,103480.0,103470.0,0.141]
[1746779956586,0.64867455,103480.0,103470.0,0.138]
[1746779956785,0.64867455,103480.0,103470.0,0.135]
[1746779956978,0.80296633,103480.0,103470.0,0.135]
[1746779957179,0.64309878,103480.0,103470.0,0.132]
[1746779957373,0.64309878,103480.0,103470.0,0.129]
[1746779957584,0.64031226,103480.0,103470.0,0.129]
[1746779957973,0.64031226,103480.0,103470.0,0.1403348]
[1746779958379,0.64031226,103480.0,103470.0,0.14033465]
[1746779958586,0.64031226,103480.0,103470.0,0.129]
[1746779958985,0.79739238,103480.0,103470.0,0.129]
[1746779959190,0.64031226,103480.0,103470.0,0.129]
[1746779959789,0.95168688,103480.0,103470.0,0.129]
[1746779959989,0.0483226,103460.0,103440.0,0.00101507]
[1746779960180,0.9149011,103450.0,103440.0,0.18446616]
[1746779960381,1.12339741,103450.0,103440.0,0.17511491]
[1746779960581,0.96631729,103450.0,103440.0,0.17211491]
[1746779960977,0.96353438,103450.0,103440.0,0.16]
[1746779961187,1.1206145,103450.0,103440.0,0.158]
[1746779961383,0.0483346,103430.0,103400.0,0.25359889]
[1746779961591,0.3608,103410.0,103400.0,0.15501541]
[1746779961782,0.37057132,103410.0,103400.0,0.20461541]
[1746779961983,0.56394712,103410.0,103400.0,0.20461541]
[1746779962183,0.56394712,103410.0,103400.0,0.36461541]
[1746779962383,0.37057132,103410.0,103400.0,0.36461541]
[1746779962891,0.38478815,103410.0,103400.0,0.36461541]
[1746779963289,0.78764407,103410.0,103400.0,0.36461541]
[1746779963594,0.78764407,103410.0,103400.0,0.26001541]
[1746779963795,0.78586207,103410.0,103400.0,0.26201541]
[1746779963989,0.78308097,103410.0,103400.0,0.25901541]
[1746779964190,0.78308097,103410.0,103400.0,0.25601541]
[1746779964398,0.78130077,103410.0,103400.0,0.25601541]
[1746779964586,0.78130077,103410.0,103370.0,0.24281836]
[1746779964587,0.096703,103400.0,103370.0,0.24281836]
[1746779964791,0.4132,103390.0,103380.0,0.0539]
[1746779964985,1.0186132,103390.0,103380.0,0.1029]
[1746779965181,1.0186132,103390.0,103380.0,0.2629]
[1746779965385,0.8252,103390.0,103380.0,0.2629]
[1746779965586,1.0186132,103390.0,103380.0,0.2629]
[1746779966093,1.0186132,103390.0,103380.0,0.28361715]
[1746779966293,1.0186132,103390.0,103380.0,0.23461715]
[1746779966490,1.0196132,103390.0,103380.0,0.23461715]
[1746779966691,1.0168339,103390.0,103380.0,0.23461715]
[1746779966987,0.8206423,103390.0,103380.0,0.17771715]
[1746779967184,1.01227801,103390.0,103380.0,0.23221715]
[1746779967385,0.81572258,103390.0,103380.0,0.42264905]
[1746779967586,0.81572258,103390.0,103380.0,0.28221715]
[1746779967790,0.81572258,103390.0,103380.0,0.62972917]
[1746779968095,0.76452258,103390.0,103380.0,0.62972917]
[1746779968490,0.76452258,103390.0,103380.0,0.47264905]
[1746779968791,0.95793578,103390.0,103380.0,0.27921715]
[1746779968990,1.01103578,103390.0,103380.0,0.27921715]
[1746779969392,1.01103578,103390.0,103380.0,0.22621715]
[1746779969593,1.01103578,103390.0,103380.0,0.28021715]
[1746779969786,0.81762258,103390.0,103380.0,0.47364905]
[1746779969989,0.81762258,103390.0,103380.0,0.47064905]
[1746779970187,0.81762258,103390.0,103380.0,0.46764905]
[1746779970399,0.81484688,103390.0,103380.0,0.46464905]
[1746779970593,0.7236,103390.0,103380.0,0.62172917]
[1746779970794,0.002,103390.0,103380.0,0.76865317]
[1746779971097,0.3600261,103400.0,103390.0,0.1934132]
[1746779971285,0.3600261,103400.0,103390.0,0.3005132]
[1746779971486,0.3600261,103400.0,103390.0,0.55430932]
[1746779971790,0.3600261,103400.0,103390.0,0.49395503]
[1746779972194,0.3610261,103400.0,103390.0,0.66529675]
[1746779972495,0.3610261,103400.0,103390.0,0.82237687]
[1746779972704,0.3610261,103400.0,103390.0,0.66907739]
[1746779972904,0.3610261,103400.0,103390.0,0.82615751]
[1746779973197,0.5516476,103400.0,103390.0,0.47563556]
[1746779973496,0.54887549,103400.0,103390.0,0.47563556]
[1746779973705,0.35270978,103400.0,103390.0,0.62971568]
[1746779973894,0.002,103400.0,103390.0,0.73577253]
[1746779974093,0.5541945,103400.0,103390.0,0.68740863]
[1746779974298,0.5541945,103400.0,103390.0,0.2945645]
[1746779974597,0.5541945,103400.0,103390.0,0.28322236]
[1746779974800,0.6593945,103400.0,103390.0,0.22922236]